Cogmind - Beta 14 @@@ ROGUE MODE // 2024.08.14 @ 05:06:42 // Winter2019/RPGLIKE Player: Toaster Result: Self-destructed Performance ------------- Evolutions (2) 1000 Regions Visited (5) 1000 Robots Destroyed (24) 120 Value Destroyed (691) 691 Prototype IDs (0) 0 Alien Tech Used (0) 0 Bonus (204) 204 TOTAL SCORE: 3015 Bonus ------- High Alert Combat Kills 28 Follower Combat Kills 176 Cogmind --------- Core Integrity 209/1200 Matter 295/300 Energy 86/100 System Corruption 0% Temperature Cool (2) Movement Core (50) Location -8/Materials Parts ------- > --- POWER (1) -------- (None) > --- PROPULSION (3) --- (None) > --- UTILITY (2) ------ Terrain Scan Processor ECM Suite > --- WEAPON (3) ------- Great Maul Scythe > --- INVENTORY (2) ---- (None) Peak State ------------ > --- POWER ------------ Nuclear Core > --- PROPULSION ------- Flight Unit Flight Unit > --- UTILITY ---------- ECM Suite High-powered Tractor Beam > --- WEAPON ----------- Great Maul Scythe > --- INVENTORY -------- (None) [Rating: 15] Favorites ----------- Power Ion Engine Engine Ion Engine Power Core Light Nuclear Core Propulsion Flight Unit Wheel Compact Wheel Flight Unit Flight Unit Utility Heat Sink Device Heat Sink Processor Terrain Scan Processor Weapon Assault Rifle Ballistic Gun Assault Rifle Launcher Mini Grenade Launcher Impact Weapon Great Maul Slashing Weapon Scythe Build | -11 -10 -10 -9 -9 -8 ------- Run | Yrd Mat Min Mat Min Mat Slots Evolved 5 | 1 . . . 2 2 Power . | . . . . . . Propulsion 2 | 1 . . . 1 . Utility 1 | . . . . . 1 Weapon 2 | . . . . 1 1 Parts Attached 25 | 4 1 7 . 3 10 Power 5 | 1 1 1 . . 2 Engine 2 | 1 1 . . . . Core 3 | . . 1 . . 2 Reactor . | . . . . . . Propulsion 8 | 2 . 2 . 2 2 Treads . | . . . . . . Leg . | . . . . . . Wheel 2 | 2 . . . . . Hover . | . . . . . . Flight 6 | . . 2 . 2 2 Utility 6 | . . 2 . . 4 Device 5 | . . 2 . . 3 Storage . | . . . . . . Processor 1 | . . . . . 1 Hackware . | . . . . . . Protection . | . . . . . . Artifact . | . . . . . . Weapon 6 | 1 . 2 . 1 2 Energy Gun . | . . . . . . Energy Cannon . | . . . . . . Ballistic Gun 3 | 1 . 2 . . . Ballistic Cannon . | . . . . . . Launcher 1 | . . . . 1 . Special Weapon . | . . . . . . Impact Weapon 1 | . . . . . 1 Slashing Weapon 1 | . . . . . 1 Piercing Weapon . | . . . . . . Special Melee Weapon . | . . . . . . Unidentified Prototypes . | . . . . . . Corrupted Parts 1 | . . . . 1 . System Corruption 10 | . . . . 10 . Parts Lost 2 | . . . . . 2 Power . | . . . . . . Propulsion 2 | . . . . . 2 Utility . | . . . . . . Weapon . | . . . . . . Highest Loss Streak 1 | . . . . . 1 To Critical Strikes . | . . . . . . Average Slot Usage (%) 87 | . 80 90 100 97 78 Engine 7 | . 20 11 . . . Core 9 | . . 8 20 18 11 Wheel 16 | . 40 27 . . . Flight 17 | . . 9 40 43 28 Device 14 | . . 13 20 18 17 Ballistic Gun 13 | . 20 20 20 16 . Launcher 1 | . . . . 2 5 Impact Weapon 1 | . . . . . 5 Slashing Weapon 1 | . . . . . 5 Peak Build Rating 15 | 4 4 12 12 13 15 Average Rating 8 | 2 4 6 12 12 12 On Entrance 7 | . 4 4 12 12 11 Naked Turns . | . . . . . . Heaviest Build 15 | 5 7 10 10 10 15 Greatest Support 32 | 32 32 32 13 17 18 Greatest Overweight (x) 1 | . . . . . 1 Average Overweight (x) . | . . . . . . Largest Inventory Capacity 2 | 1 1 1 1 2 2 Average Capacity 1 | . 1 1 1 1 2 Most Carried 2 | 1 1 1 1 2 2 Average Carried . | . . . . . 1 Final Capacity 2 | 1 1 1 1 2 2 Final Carried 2 | . . . . 2 . Class Distribution -------------------- 69% | Mutant 15% | Scavenger-Mutant 15% | Gladiator Dominant Class ---------------- Mutant | -10/Materials Mutant | -10/Mines Mutant | -9/Materials Scavenger-Mutant | -9/Mines Gladiator | -8/Materials Resources | -11 -10 -10 -9 -9 -8 ----------- Run | Yrd Mat Min Mat Min Mat Matter Collected 824 | 240 . 175 . 64 345 Remotely 316 | . . . . . 316 Salvage Created 358 | . . 75 . 63 220 Parts 34 | . 3 4 . 4 23 Haulers Intercepted . | . . . . . . Recyclers Shooed 1 | . . . . . 1 Parts Field Recycled . | . . . . . . Retrieved Matter . | . . . . . . Parts Self-Destructed . | . . . . . . Prevented . | . . . . . . Kills | -11 -10 -10 -9 -9 -8 ------- Run | Yrd Mat Min Mat Min Mat Combat Hostiles Destroyed 18 | . 1 1 . 3 13 Melee 3 | . . . . . 3 Guns 5 | . 1 1 . 3 . AOE 10 | . . . . . 10 Classes Destroyed 11 | . 1 1 . 1 8 Worker 1 | . . 1 . . . Builder 2 | . . . . . 2 Operator 1 | . . . . . 1 Watcher 2 | . . . . . 2 Swarmer 3 | . . . . 3 . Cutter 4 | . . . . . 4 Grunt 7 | . 1 1 . . 5 Brawler 1 | . . . . . 1 Duelist 1 | . . . . . 1 Sentry 1 | . . . . . 1 Hunter 1 | . . . . . 1 Best Kill Streak 9 | . 1 1 . 3 9 Combat Bots Only 6 | . 1 1 . 3 6 Max Kills in Single Turn 2 | . 1 1 . 1 2 Gunslinging . | . . . . . . Exploded 2 | . . . . . 2 Melee 1 | . . . . . 1 Uniques/NPCs Destroyed . | . . . . . . Combat | -11 -10 -10 -9 -9 -8 -------- Run | Yrd Mat Min Mat Min Mat Hostile Shots Fired 144 | . 5 33 8 24 74 Missed 54 | . 2 7 3 11 31 Damage Taken 1718 | . 34 373 74 150 1087 Core 1473 | . 28 322 61 118 944 Absorbed by Shields . | . . . . . . Redirected to Core 878 | . 17 166 47 105 543 Core Remaining (%) 94 | 100 . 100 . 82 . Volleys Fired 69 | . 6 29 . 8 26 Largest 1 | . 1 1 . 1 1 Hottest 33 | . 20 33 . 33 30 Shots Fired 69 | . 6 29 . 8 26 Gun 43 | . 6 29 . 8 . Cannon . | . . . . . . Launcher 26 | . . . . . 26 Special . | . . . . . . Kinetic 43 | . 6 29 . 8 . Thermal . | . . . . . . Explosive 26 | . . . . . 26 Electromagnetic . | . . . . . . Robot Hit Streak 8 | . 3 5 . 2 8 Robot Miss Streak 3 | . 1 3 . 2 3 Penetration Max . | . . . . . . Secondary Targets . | . . . . . . Shots Hit Robots 47 | . 4 18 . 4 21 Core Hits 38 | . 2 3 . 3 30 Critical Kills 2 | . . . . 1 1 Critical Parts Destroyed 1 | . . . . . 1 Critical Strikes 3 | . . . . 1 2 Destroy 1 | . . . . 1 . Smash 2 | . . . . . 2 Melee Attacks 9 | . . . . . 9 Impact 7 | . . . . . 7 Slashing 2 | . . . . . 2 Piercing . | . . . . . . Sneak Attacks . | . . . . . . Combat Hostiles . | . . . . . . Follow-up Attacks . | . . . . . . Damage Inflicted 1890 | . 50 251 . 88 1501 Guns 389 | . 50 251 . 88 . Cannons . | . . . . . . Explosions 1263 | . . . . . 1263 Melee 238 | . . . . . 238 Ramming . | . . . . . . Kinetic 389 | . 50 251 . 88 . Thermal . | . . . . . . Explosive 1263 | . . . . . 1263 Electromagnetic . | . . . . . . Impact 198 | . . . . . 198 Slashing 40 | . . . . . 40 Piercing . | . . . . . . Highest Corruption 10 | . . . . 10 . Average Corruption 10 | . . . . 10 . Corruption Purged . | . . . . . . Corruption Blocked . | . . . . . . Effects 1 | . . . . 1 . Energy Discharges 1 | . . . . 1 . Overload Shots . | . . . . . . Overflow Damage 111 | . . . . . 111 Projectiles . | . . . . . . Explosions . | . . . . . . Melee 111 | . . . . . 111 Knockbacks 1 | . . . . . 1 Impact 1 | . . . . . 1 Kinetic . | . . . . . . Secondary . | . . . . . . Self-Inflicted Damage 131 | . . . . . 131 Shots 5 | . . . . . 5 Rammed . | . . . . . . Targets Rammed . | . . . . . . Kicked . | . . . . . . Crushed . | . . . . . . Highest Temperature 17 | . . 17 . . 12 Average Temperature 7 | . . 8 . . 6 Received Heat Transfer 411 | . 18 249 18 . 126 Siege Activations . | . . . . . . Robots Corrupted 1 | . . . . . 1 Combat Hostiles . | . . . . . . Parts Fried . | . . . . . . Impact Corruptions 3 | . . . . . 3 Robots Melted . | . . . . . . Combat Hostiles . | . . . . . . Parts Melted . | . . . . . . Heat Transferred . | . . . . . . Parts Sabotaged . | . . . . . . Parts Stolen . | . . . . . . Parts Stripped . | . . . . . . Power Chain Reactions . | . . . . . . Alert | -11 -10 -10 -9 -9 -8 ------- Run | Yrd Mat Min Mat Min Mat Peak Influence 503 | . 45 197 102 121 503 Initial 57 | . . 17 57 39 46 Average 145 | . 23 80 70 90 328 Maximum Alert Level 2 | . . . . . 2 Low Security (%) 77 | 100 100 100 100 100 22 Level 1 9 | . . . . . 31 Level 2 13 | . . . . . 45 Level 3 . | . . . . . . Level 4 . | . . . . . . Level 5 . | . . . . . . High Security . | . . . . . . Max Security . | . . . . . . Squads Dispatched 5 | . 1 . . . 4 Investigation . | . . . . . . Extermination . | . . . . . . Reinforcement 5 | . 1 . . . 4 Assault . | . . . . . . Garrison . | . . . . . . Intercept . | . . . . . . Searches Triggered . | . . . . . . Construction Impeded . | . . . . . . Haulers Reinforced . | . . . . . . Active Scanning Responses . | . . . . . . Cargo Convoy Interrupts . | . . . . . . Stealth | -11 -10 -10 -9 -9 -8 --------- Run | Yrd Mat Min Mat Min Mat Distress Signals 4 | . 1 . 1 . 2 Communications Jammed . | . . . . . . Distress Signals . | . . . . . . Times Spotted 59 | . 4 14 4 10 27 Peak Tracking Total 7 | . 3 3 4 7 7 Tactical Retreats 8 | . . 6 . 1 1 Traps | -11 -10 -10 -9 -9 -8 ------- Run | Yrd Mat Min Mat Min Mat Traps Triggered 1 | . . . . . 1 Indirectly . | . . . . . . Trap Hack Attempts . | . . . . . . Triggered . | . . . . . . Disarmed . | . . . . . . Reprogrammed . | . . . . . . Reused . | . . . . . . Traps Extracted . | . . . . . . Installed . | . . . . . . Triggered 1 | . . . . 1 . Machines | -11 -10 -10 -9 -9 -8 ---------- Run | Yrd Mat Min Mat Min Mat Machines Disabled 3 | . . . . . 3 Max in Single Turn 1 | . . . . . 1 Machines Repaired . | . . . . . . Machines Dismantled . | . . . . . . Machines Sabotaged . | . . . . . . Overloaded Fab Kills . | . . . . . . Hacking | -11 -10 -10 -9 -9 -8 --------- Run | Yrd Mat Min Mat Min Mat Machines Accessed 2 | . . . . . 2 Terminals 2 | . . . . . 2 Fabricators . | . . . . . . Repair Stations . | . . . . . . Recycling Units . | . . . . . . Scanalyzers . | . . . . . . Garrison Access . | . . . . . . Total Hacks 5 | . . . . . 5 Successful 2 | . . . . . 2 Failed 3 | . . . . . 3 Catastrophic . | . . . . . . Database Lockouts . | . . . . . . Manual . | . . . . . . Terminals 5 | . . . . . 5 Fabricators . | . . . . . . Repair Stations . | . . . . . . Recycling Units . | . . . . . . Scanalyzers . | . . . . . . Garrison Access . | . . . . . . Terminal Hacks 2 | . . . . . 2 Record 1 | . . . . . 1 Unreport Threat 1 | . . . . . 1 Fabricator Hacks . | . . . . . . Repair Station Hacks . | . . . . . . Recycling Unit Hacks . | . . . . . . Scanalyzer . | . . . . . . Garrison Access Hacks . | . . . . . . Unauthorized Hacks . | . . . . . . Terminals . | . . . . . . Fabricators . | . . . . . . Repair Stations . | . . . . . . Recycling Units . | . . . . . . Scanalyzers . | . . . . . . Garrison Access . | . . . . . . Data Cores Recovered . | . . . . . . Used . | . . . . . . Hacking Detections 1 | . . . . . 1 Full Trace Events . | . . . . . . Feedback Events . | . . . . . . Feedback Blocked . | . . . . . . Robot Schematics Acquired . | . . . . . . Robots Built . | . . . . . . Authchips . | . . . . . . Time . | . . . . . . Total Robot Build Rating . | . . . . . . Part Schematics Acquired . | . . . . . . Parts Built . | . . . . . . Authchips . | . . . . . . Time . | . . . . . . Total Part Build Rating . | . . . . . . Parts Repaired . | . . . . . . Time . | . . . . . . Parts Recycled . | . . . . . . Recycled Matter . | . . . . . . Retrieved Matter . | . . . . . . Retrieved Components . | . . . . . . Parts Scanalyzed . | . . . . . . Part Schematics Acquired . | . . . . . . Parts Damaged . | . . . . . . Bothacking | -11 -10 -10 -9 -9 -8 ------------ Run | Yrd Mat Min Mat Min Mat Used RIF Installer . | . . . . . . Robots Hacked . | . . . . . . Non-combat . | . . . . . . Combat . | . . . . . . Robot Hacks Applied . | . . . . . . Relay Couplers Released . | . . . . . . Fabnet Peak Effective % . | . . . . . . Robots Rewired . | . . . . . . Allies Hacked . | . . . . . . Hacks Repelled . | . . . . . . Allies | -11 -10 -10 -9 -9 -8 -------- Run | Yrd Mat Min Mat Min Mat Total Allies 3 | . . 3 . . . Largest Group 3 | . . 3 1 . . Highest-Rated Group 40 | . . 40 16 . . Highest-Rated Ally 16 | . . 16 16 . . Total Orders . | . . . . . . Ally Attacks 35 | . . 35 . . . Total Damage 324 | . . 324 . . . Kills 8 | . . 8 . . . Allies Corrupted . | . . . . . . Allies Melted . | . . . . . . Intel | -11 -10 -10 -9 -9 -8 ------- Run | Yrd Mat Min Mat Min Mat Robot Analysis Total . | . . . . . . Derelict Logs Recovered 3 | . . 1 . 2 . Drone Launches . | . . . . . . Drone Recoveries . | . . . . . . Exploration | -11 -10 -10 -9 -9 -8 ------------- Run | Yrd Mat Min Mat Min Mat Turns Passed 1079 | 39 62 560 39 70 309 Spaces Moved 1394 | 39 46 568 98 124 519 Core 21 | 14 . . . . 7 Treads . | . . . . . . Legs . | . . . . . . Wheels 386 | 25 46 315 . . . Hover . | . . . . . . Flight 987 | . . 253 98 124 512 Fastest Speed 34 | 50 100 37 37 34 34 Average Speed 54 | 82 100 72 37 35 36 Slowest Speed 100 | 100 100 100 37 37 100 Overloaded Moves . | . . . . . . Propulsion Burnouts . | . . . . . . Robots Hopped 2 | . . . . 2 . Cave-ins Triggered . | . . . . . . Exploration Rate (%) 26 | 3 6 63 13 29 43 Regions Visited 5 Branch Regions 2 Pre-discovered Areas 2 | . . 1 . 1 . Known Exits Taken . | . . . . . . Unknown Exits Taken 5 | 1 1 1 1 1 . Scrap Searched 3 | . . 3 . . . Spaces Dug . | . . . . . . Terrain Destroyed 180 | . . 1 . 2 177 Melee . | . . . . . . Projectile 3 | . . 1 . 2 . AOE 177 | . . . . . 177 Terrain Rammed . | . . . . . . Walls Destroyed . | . . . . . . Machines Disabled . | . . . . . . Actions | -11 -10 -10 -9 -9 -8 --------- Run | Yrd Mat Min Mat Min Mat Total 1628 | 45 56 688 100 139 600 Wait 76 | . . 58 1 2 15 Move 1386 | 38 45 567 97 120 519 Hop 1 | . . . . 1 . Pick Up 22 | 3 1 6 1 4 7 Fast Attach 4 | 1 . . . . 3 Attach 16 | 3 . 6 . 1 6 Detach 3 | . . 1 . . 2 Swap 5 | . 1 1 . 2 1 Drop 15 | . 1 5 1 1 7 Fire 69 | . 6 29 . 8 26 Melee 8 | . . . . . 8 Ram . | . . . . . . Kick . | . . . . . . Crush . | . . . . . . Escape Stasis . | . . . . . . Rewire . | . . . . . . Trap . | . . . . . . Miscellaneous 23 | . 2 15 . . 6 Route ------- -11/Scrapyard -10/Materials -10/Mines -9/Materials -9/Mines -8/Materials History --------- Turn | Location | Event 8 | -11/Scrapyard | Upgraded with Propulsion slot (x1) 17 | -11/Scrapyard | Discovered new exit (range 15) 40 | -11/Scrapyard | Entered Materials 40 | -10/Materials | Discovered new exit (range 7) 102 | -10/Materials | Entered Mines 182 | -10/Mines | Assisted by bots powering up and referring to "LRC-V3" 233 | -10/Mines | Found a hidden stash of uninstalled traps 311 | -10/Mines | Build established: Mutant 351 | -10/Mines | Discovered new exit (range 8) 379 | -10/Mines | Core integrity fell below 50% 476 | -10/Mines | Learned location of Zion (-7) 527 | -10/Mines | A weapon hastily lodged in a ceiling crevice suddenly fell to the ground 566 | -10/Mines | Reached level 2 662 | -10/Mines | Entered Materials 662 | -9/Materials | Accompanied by 1 ally 664 | -9/Materials | Reached level 3 686 | -9/Materials | Discovered new exit (range 16) 701 | -9/Materials | Entered Mines 713 | -9/Mines | Learned Materials security intel 742 | -9/Mines | Assembled infested the area 743 | -9/Mines | Upgraded with Propulsion slot (x1) 762 | -9/Mines | Discovered new exit (range 17) 768 | -9/Mines | Upgraded with Weapon slot (x1) 769 | -9/Mines | System corruption reached 10% 771 | -9/Mines | Entered Materials 773 | -8/Materials | Reached level 4 788 | -8/Materials | Upgraded with Utility slot (x1) 820 | -8/Materials | Reached level 5 922 | -8/Materials | Core integrity fell below 50% 949 | -8/Materials | Reached level 6 1062 | -8/Materials | Upgraded with Weapon slot (x1) 1077 | -8/Materials | Core integrity fell below 20% 1080 | -8/Materials | Self-destructed Last Messages --------------- 01060_ Knocked back. 01062_ Upgraded: Weapon Slot (+1) 01063_ Knocked back. 01063_ U-05 Engineer lays Concrete. 01065_ Knocked back. 01067_ C-17 Slicer suffers critical hit (Smash). 01067_ Destroyed Reaction Control System. 01067_ C-17 Slicer system corrupted by crushing effect. 01067_ C-17 Slicer knocked back. 01067_ Penetrated by Slug. 01069_ Flight Unit destroyed. 01069_ Knocked back. 01073_ Nuclear Core severed. 01073_ U-05 Engineer lays Concrete. 01076_ Destroyed Lgt. Nuclear Core. 01076_ C-17 Slicer system corrupted by crushing effect. 01076_ C-17 Slicer destroyed. 01077_ U-05 Engineer lays Concrete. 01079_ Critical hit (Burn: +37). 01080_ U-05 Engineer lays Concrete. Map ----- +----------------------------------------------------+ | #?????????????????????????????????????????????? | | #?????????????????????????????????????????????? | | ############?????????????????????????????????????? | | ## #?????????????????###+#???????????????? | | ## ! #????????????????? ???????????????? | | # #????????????????? ????????????????? | | + #????????????????? ????????????????? | | # ][ #####????????????? #????????????????? | | # ][ # ####?????????# #????????????????? | | ][ ##????????# ##???????????????? | | # # # ##???????# ????????????????? | | ########## #= ## ######?? ##???????????????? | | % ??? =% #???????????????? | | ## #?##????# *%[ #???????????????? | | # ###"#### %=%=################# | | ##### ! #; **% | | ????##### | ## !%= | | ????????####* =# """ ## =/H | | ???????????# =!+ """ ##% ########### # | | ???????????# # """ ## = #####??????# """" | | #########??# # #% u #?????####?# ""T" | | # ?## # ####; u###????## ### | | # =# ####### % ####### # ] ! | | # # a ##+### # | | # + g % T T | | # #a g % * @ k ######## | | # # ####### ####### ##?????# # | | # ## # # #####+###?????## ########### | | # # #####??? ????????# # # | | ######### # ##????? ????????# # # | | ?# "" #????? """???????# + # | | ?# """" ### """??###### # # | | ???? """" / """??+ # # | | ?# """"" #### ###### #? # | | ?# """ ###?? #????# #? # | | ?# #??? #????# #?? # | | ?# # # #+#?????##?????# #??######## | | ?# # + # #????????????# #?????????? | | ?########### # # ############?# #?????????? | | ???????????# # # ## = ### #?????????? | | ??????????## ###### ## "" + #?????????? | | ??????????# ## T" ##### #?????????? | | ??????????# # [ "" ##??# #?????????? | | ??????????# +! ####+#######???? | | ????? # ] # #???? | | ??? #! ! # #???? | | ??? # ! # #???? | | ?? ### # # #???? | | ?######### #####+##### #?# ## #???? | | ?????????# ??????????# #?## ## #???? | +----------------------------------------------------+ Best States ------------- Heat Dissipation 39 Energy Generation 14 Energy Capacity 250 Matter Stores 300 Matter Capacity 300 Sight Range 18 Terrain Scan Density 85 ECM Strength 1 Evasion (%) 63 Item Schematics ----------------- None Robot Schematics ------------------ None Fabricated ------------ Nothing Alien Tech Used ----------------- None Achievements -------------- Let's See Who's Tougher Challenges ------------ None RPGLIKE | -11 -10 -10 -9 -9 -8 --------- Run | Yrd Mat Min Mat Min Mat Levels Raised 5 | . . 1 1 . 3 XP Earned 10707 | 3000 150 1799 1500 900 3358 XP Spent 10110 | 750 . 100 . 4880 4380 Upgrades 32 | 2 . 1 . 17 12 Propulsion Slot 2 | 1 . . . 1 . Utility Slot 1 | . . . . . 1 Weapon Slot 2 | . . . . 1 1 Core Integrity 12 | . . . . 8 4 Mass Support 2 | . . 1 . . 1 Inventory Capacity 2 | 1 . . . 1 . Sight Range 2 | . . . . 2 . Ranged Accuracy 4 | . . . . 4 . Melee Accuracy 5 | . . . . . 5 Protomatter Created 154 | . 36 . . . 118 Integrity Restored 482 | . 28 322 . . 132 Core 482 | . 28 322 . . 132 Protomatter Decayed 89 | . . 85 . . 4 Game ------ Seed CannonFusionFirepult Manual? 0 Play Time 00:42:44 Cumulative 31.2 hours Start 2024.08.14 @ 04:18:00 End 2024.08.14 @ 05:06:42 Sessions 1 Manual Loads 0 Difficulty Rogue Special Mode Winter2019/RPGLIKE Game No. 15 Rogue 11 Adventurer 4 Explorer 0 Win Type - Total 1 Types 1/0/0/0/0/0/0/0/0 Lore% 15 Gallery% 26 Achievement% 34 Wizard Run 0 Options --------- Layout 0 ASCII 0 Keyboard 0 Movement Arrows Keybinds 0 Fullscreen 2 Font 32/SmallcapsGlow Map View 88x55 Zoom Use 0% Tactical HUD 1 Map Filters NONE Filters NONE Steam 1 RUN: 9d352c54-ba20-46d0-b1d9-04011de0aad1